bitfinex/quotes_ETHUSD_20250523
["timestamp","ask_amount","ask_price","bid_price","bid_amount"]
[1748020840550,3.88093297,2576.7,2576.6,16.744]
[1748020840749,3.88093297,2576.7,2576.6,31.988]
[1748020841078,3.88093297,2576.7,2576.6,39.988]
[1748020841677,3.88093297,2576.7,2576.6,31.988]
[1748020843501,3.88093297,2576.7,2576.6,31.989]
[1748020843789,5.43390723,2576.7,2576.6,31.989]
[1748020843986,5.43390723,2576.7,2576.6,16.744]
[1748020844147,4.65773297,2576.7,2576.6,31.989]
[1748020844884,3.88093297,2576.7,2576.6,31.989]
[1748020845385,3.8808096,2576.8,2576.6,31.989]
[1748020845544,4.63369272,2577.5,2576.8,0.7587]
[1748020845748,3.8801884,2577.2,2576.8,0.7587]
[1748020846073,4.63369272,2577.5,2576.8,0.7587]
[1748020846074,3.88063176,2576.9,2576.8,0.7587]
[1748020846273,3.88056607,2577.0,2576.8,0.7587]
[1748020846779,3.88063176,2576.9,2576.8,0.7587]
[1748020847413,3.88063176,2576.9,2576.7,8.0]
[1748020847569,3.88063176,2576.9,2576.8,34.876]
[1748020848124,3.88093297,2576.7,2576.6,16.744]
[1748020848486,3.88093297,2576.7,2576.6,31.99]
[1748020849393,5.12604061,2576.7,2576.6,16.744]
[1748020849596,5.12604061,2576.7,2576.6,31.99]
[1748020850709,5.12604061,2576.7,2576.6,16.744]
[1748020850920,5.12604061,2576.7,2576.6,31.99]
[1748020851206,5.12604061,2576.7,2576.6,31.991]
[1748020851406,5.12604061,2576.7,2576.6,16.744]
[1748020851603,5.12604061,2576.7,2576.6,31.991]
[1748020851804,6.43284061,2576.7,2576.6,16.744]
[1748020851962,3.88259046,2575.6,2575.5,16.748]
[1748020852172,3.88259046,2575.6,2575.5,31.995]
[1748020852374,3.88259046,2575.6,2575.5,39.995]
[1748020852612,3.88239652,2575.8,2575.6,8.0]
[1748020852797,4.63834953,2576.3,2575.6,8.0]
[1748020852999,3.88231201,2575.8,2575.6,8.0]
[1748020853372,3.88231201,2575.8,2575.7,0.21481071]
[1748020853572,3.88214384,2575.9,2575.7,0.21481071]
[1748020853780,3.8817235,2576.2,2575.9,8.0]
[1748020854002,3.8817235,2576.2,2576.1,8.0]
[1748020855521,3.88148471,2576.4,2576.1,10.3247]
[1748020855817,3.88153603,2576.3,2576.2,11.632]
[1748020856523,3.8816862,2576.2,2576.1,19.632]
[1748020857017,3.88160501,2576.3,2576.1,19.632]
[1748020857230,3.88109498,2576.6,2576.1,19.632]
[1748020857429,3.88132878,2576.5,2576.1,19.632]
[1748020857730,3.88146419,2576.4,2576.1,19.632]
[1748020858439,3.8816862,2576.2,2576.1,19.632]
[1748020858840,3.8816862,2576.2,2576.1,34.865]
[1748020859011,3.8816862,2576.2,2576.1,23.44773911]
[1748020860042,3.8816862,2576.2,2576.1,0.21473911]
[1748020860245,4.65801138,2576.2,2576.1,15.44773911]
[1748020860735,3.8816862,2576.2,2576.1,15.233]
[1748020862735,3.88114799,2576.6,2576.2,8.7512]
[1748020862933,3.88149173,2576.4,2576.2,8.7512]
[1748020863235,3.88153553,2576.3,2576.2,8.0]
[1748020863437,3.88146011,2576.4,2576.2,8.0]
[1748020863733,3.8807877,2576.8,2576.3,0.7512]
[1748020864052,3.88119557,2576.6,2576.4,0.21469489]
[1748020864222,3.88119557,2576.6,2576.5,51.618]
[1748020864658,3.88119557,2576.6,2576.5,31.985]
[1748020865118,4.74072129,2576.6,2576.5,31.985]
[1748020866462,4.74072129,2576.6,2576.5,16.751]
[1748020866635,4.74072129,2576.6,2576.5,31.984]
[1748020866837,4.74072129,2576.6,2576.5,16.751]
[1748020867158,3.88119557,2576.6,2576.5,31.984]
[1748020873014,3.88119557,2576.6,2576.5,16.751]
[1748020873196,15.39599557,2576.6,2576.5,31.984]
[1748020873617,15.39599557,2576.6,2576.5,16.751]
[1748020873923,4.65668487,2576.4,2576.3,15.233]
[1748020874101,3.88228899,2575.8,2575.7,28.384]
[1748020874302,0.7753,2576.4,2575.8,8.0]
[1748020874500,10.19,2576.6,2575.7,43.617]
[1748020874501,10.19,2576.6,2576.2,8.0]
[1748020874696,14.07115062,2576.6,2576.3,26.866]
[1748020874929,3.88123423,2576.5,2576.4,0.8232]
[1748020875134,3.88123423,2576.5,2576.4,1.03830045]
[1748020875300,3.88114336,2576.6,2576.4,1.03830045]
[1748020875506,3.88114336,2576.6,2576.4,9.03830045]
[1748020875707,3.88099589,2576.7,2576.4,9.03830045]
[1748020875901,3.88099589,2576.7,2576.5,0.21510045]
[1748020876227,3.88088194,2576.8,2576.5,0.21510045]
[1748020877734,3.88072589,2576.9,2576.5,0.21510045]
[1748020877892,10.19,2577.3,2576.6,8.0]
[1748020878092,3.88078236,2576.8,2576.7,28.384]
[1748020878323,3.88078236,2576.8,2576.7,43.83310045]
[1748020878862,3.88078236,2576.8,2576.7,16.96610045]
[1748020879142,3.88078236,2576.8,2576.7,32.20010045]
[1748020879323,3.88078236,2576.8,2576.7,16.751]
[1748020879635,3.88078236,2576.8,2576.7,31.985]
[1748020879831,4.65692654,2576.8,2576.7,31.985]
[1748020881536,4.65692654,2576.8,2576.7,16.751]
[1748020881829,5.43632654,2576.8,2576.7,31.984]
[1748020882335,5.43632654,2576.8,2576.7,16.751]
[1748020882535,5.43632654,2576.8,2576.7,31.984]
[1748020882834,15.62632654,2576.8,2576.7,31.984]
[1748020883837,15.62632654,2576.8,2576.7,16.751]
[1748020884143,15.62632654,2576.8,2576.7,31.984]
[1748020887738,14.07078236,2576.8,2576.7,31.984]
[1748020888111,14.07078236,2576.8,2576.7,32.19915268]
[1748020888553,3.88078236,2576.8,2576.7,32.19915268]
[1748020889161,3.88078236,2576.8,2576.7,16.96615268]
[1748020889363,3.88078236,2576.8,2576.7,32.18515268]
[1748020889649,5.44902435,2576.8,2576.7,31.97]
[1748020890151,27.82202435,2576.8,2576.7,31.97]
[1748020890525,27.27202435,2576.8,2576.7,31.97]
[1748020890854,15.63902435,2576.8,2576.7,31.97]
[1748020891159,14.07078236,2576.8,2576.7,31.97]
[1748020891515,11.632,2577.2,2576.7,31.97]
[1748020891516,10.19,2577.3,2576.7,39.97]
[1748020891756,0.8236,2577.4,2576.8,8.21512784]
[1748020891921,3.88048117,2577.0,2576.9,0.7664]
[1748020892661,3.88048117,2577.0,2576.9,0.98152784]
[1748020893044,3.88036373,2577.1,2576.9,3.9601944]
[1748020893353,3.88036373,2577.1,2576.9,0.98152784]
[1748020893653,3.88009522,2577.3,2577.0,0.21512784]
[1748020893856,5.82765102,2577.6,2577.2,8.0]
[1748020894020,3.87972841,2577.5,2577.4,8.0]
[1748020894224,3.87972841,2577.5,2577.4,19.84612784]
[1748020895562,3.87972841,2577.5,2577.4,19.631]
[1748020896062,1.94795916,2577.6,2577.4,19.631]
[1748020896241,3.87972841,2577.5,2577.4,19.631]
[1748020896762,3.87960455,2577.6,2577.4,15.216]
[1748020896966,3.87972841,2577.5,2577.4,15.216]
[1748020897828,3.88063176,2576.9,2576.8,8.7557]
[1748020898058,3.88063176,2576.9,2576.8,35.6017]
[1748020898260,0.8302,2578.0,2577.0,0.7557]
[1748020898460,0.8302,2578.3,2577.5,8.0]
[1748020898659,0.8302,2578.3,2577.6,26.88479118]
[1748020898968,3.8792769,2577.8,2577.7,24.748]
[1748020899573,3.87921167,2577.9,2577.8,8.0]
[1748020900187,3.87904692,2578.0,2577.8,8.0]
[1748020900463,3.87904692,2578.0,2577.9,0.7557]
[1748020903577,3.87912642,2577.9,2577.8,8.0]
[1748020904191,11.0202,2578.5,2577.8,8.0]
[1748020904339,3.87860202,2578.3,2577.8,11.87927561]
[1748020904543,3.87867601,2578.2,2577.8,8.0]
[1748020904796,3.87878594,2578.2,2577.9,0.7704]
[1748020904969,3.87874779,2578.2,2578.0,11.628]
[1748020905276,3.87857963,2578.3,2578.1,15.212]
[1748020905482,3.87837492,2578.4,2578.1,23.212]
[1748020905483,3.87867504,2578.2,2578.1,23.212]
[1748020905641,3.87859732,2578.3,2578.1,23.212]
[1748020906544,3.87839043,2578.4,2578.1,23.212]
[1748020906545,3.87867504,2578.2,2578.1,23.212]
[1748020907045,3.87853376,2578.3,2578.1,23.212]
[1748020907442,10.19,2578.5,2578.3,0.7734]
[1748020907648,0.005,2578.7,2578.5,8.0]
[1748020907964,3.88292298,2578.7,2578.6,23.212]
[1748020908475,3.88292298,2578.7,2578.6,27.84077337]
[1748020908476,0.005,2578.7,2578.6,27.84077337]
[1748020908656,0.005,2578.7,2578.6,29.88061337]
[1748020909251,0.005,2578.7,2578.6,41.50561337]
[1748020909453,0.005,2578.7,2578.6,37.62754]
[1748020909791,0.005,2578.7,2578.6,37.82160556]
[1748020909997,0.005,2578.7,2578.6,37.62754]
[1748020910296,0.005,2578.7,2578.6,10.79054]
[1748020910784,0.005,2578.7,2578.6,35.5877]
[1748020912868,0.005,2578.7,2578.6,8.7507]
[1748020913070,3.88292298,2578.7,2578.6,8.7507]
[1748020913283,0.005,2578.7,2578.6,35.5837]
[1748020913446,0.005,2578.7,2578.6,8.7507]
[1748020913653,0.005,2578.7,2578.6,36.86618787]
[1748020915456,0.005,2578.7,2578.6,40.74426124]
[1748020915662,0.005,2578.7,2578.6,36.86618787]
[1748020916899,0.8201,2579.7,2578.8,3.87766026]
[1748020917099,3.8761894,2579.9,2579.4,0.7914]
[1748020917259,0.00157,2580.0,2579.6,8.0]
[1748020917464,3.87611922,2579.9,2579.7,1.69617869]
[1748020917664,3.87626947,2579.8,2579.7,1.69617869]
[1748020918178,3.87611922,2579.9,2579.0,0.7914]
[1748020918378,3.87667621,2579.6,2579.2,8.0]
[1748020918613,3.87650839,2579.7,2579.3,0.7914]
[1748020918797,0.00157,2580.0,2579.3,0.7914]
[1748020918798,3.87620694,2579.9,2579.3,0.7914]
[1748020919100,3.87767702,2580.0,2579.3,4.66835429]
[1748020919406,3.87760475,2580.0,2579.4,9.26683543]
[1748020919706,3.87754804,2580.0,2579.4,1.26683543]
[1748020919893,0.00157,2580.0,2579.4,5.14367144]
[1748020920087,0.00157,2580.0,2579.4,1.26683543]
[1748020920392,0.00157,2580.0,2579.6,0.8115]
[1748020920709,0.00157,2580.0,2579.9,12.68761922]
[1748020920890,3.87488462,2580.8,2580.2,0.7984]
[1748020921062,3.87500562,2580.7,2580.4,8.0]
[1748020921263,3.87483962,2580.8,2580.4,8.0]
[1748020921501,3.87492093,2580.7,2580.4,8.0]
[1748020922078,3.87483994,2580.8,2580.4,8.0]
[1748020922285,3.87496094,2580.7,2580.4,9.26683543]
[1748020922499,3.87531527,2580.5,2580.2,0.7984]
[1748020922725,3.87531527,2580.5,2580.4,8.0]
[1748020922932,4.67897961,2581.2,2580.2,0.7984]
[1748020922933,0.8048,2581.2,2580.2,0.7984]
[1748020923138,3.87541532,2580.4,2580.3,15.188]
[1748020923429,3.87541532,2580.4,2580.2,11.68204207]
[1748020923628,3.87541532,2580.4,2580.3,15.188]
[1748020923833,3.87519489,2580.6,2580.3,15.188]
[1748020923990,4.6793414,2581.0,2580.3,15.188]
[1748020924190,0.46793414,2580.9,2580.3,15.188]
[1748020924531,3.87536261,2580.5,2580.3,15.188]
[1748020924830,3.87510501,2580.6,2580.3,15.188]
[1748020924831,3.87509495,2580.6,2580.3,15.188]
[1748020925036,3.87495433,2580.7,2580.3,15.188]
[1748020925227,3.8753268,2580.5,2580.3,15.188]
[1748020925414,3.87536815,2580.4,2580.3,15.188]
[1748020926305,0.8048,2581.0,2580.3,15.188]
[1748020926534,3.87535164,2580.5,2580.3,15.188]
[1748020926736,3.87523301,2580.5,2580.4,26.804]
[1748020927119,3.87511943,2580.6,2580.4,26.804]
[1748020927513,3.87521798,2580.5,2580.4,26.804]
[1748020927737,3.87521798,2580.5,2580.4,34.804]
[1748020928745,3.87386689,2581.4,2580.6,0.5482]
[1748020928944,14.06379009,2581.5,2580.6,0.5482]
[1748020929242,0.8291,2581.3,2580.7,26.802]
[1748020929407,14.89295602,2581.5,2580.7,26.802]
[1748020929737,1.4892956,2581.4,2580.9,0.5482]
[1748020929936,1.4892956,2581.4,2581.0,16.727]
[1748020930142,3.87387397,2581.4,2581.1,15.185]
[1748020930340,0.8291,2581.9,2581.3,8.0]
[1748020930755,0.8291,2581.9,2581.1,4.42243725]
[1748020930756,0.8291,2581.9,2581.4,26.801]
[1748020930911,0.8291,2581.9,2581.1,8.5482]
[1748020931112,1.29930669,2581.9,2581.3,8.0]
[1748020931846,0.03898433,2581.8,2581.4,26.798]
[1748020932002,3.87351782,2581.7,2581.5,15.182]
[1748020932204,3.87351782,2581.7,2581.1,8.5482]
[1748020932412,3.87362504,2581.6,2581.2,15.182]
[1748020932614,0.77471429,2581.5,2581.2,15.182]
[1748020933058,0.77471429,2581.5,2581.0,16.727]
[1748020933059,0.7791,2581.5,2581.0,16.727]
[1748020933218,4.65289185,2581.5,2581.3,15.182]
[1748020933611,0.7791,2581.5,2581.3,15.182]
[1748020933814,4.65281878,2581.5,2581.3,15.182]
[1748020934010,0.46528188,2581.4,2581.3,15.182]
[1748020934274,0.7791,2581.5,2581.3,15.182]
[1748020934571,3.87312927,2581.9,2581.4,15.182]
[1748020935055,4.65214761,2582.0,2581.4,15.182]
[1748020935229,3.87323564,2581.9,2581.4,15.182]
[1748020935434,0.03898433,2581.8,2581.5,15.181]
[1748020935645,3.8740189,2581.3,2581.2,11.613]
[1748020935862,3.8740189,2581.3,2581.0,16.727]
[1748020935863,3.87431715,2581.1,2581.0,16.727]
[1748020936160,4.65541715,2581.1,2581.0,31.908]
[1748020936955,4.65541715,2581.1,2581.0,16.727]
[1748020937145,4.65541715,2581.1,2581.0,31.908]
[1748020937769,0.7811,2581.1,2581.0,31.908]
[1748020937969,1.67278279,2581.1,2581.0,31.908]
[1748020938291,0.89168279,2581.1,2581.0,31.908]
[1748020938455,0.7705,2581.6,2581.0,31.908]
[1748020938785,3.87379611,2581.5,2581.0,43.521]
[1748020938987,0.7705,2581.6,2581.0,43.521]
[1748020939188,3.87393499,2581.4,2581.0,43.521]
[1748020939481,0.85181794,2581.4,2581.0,43.521]
[1748020940244,3.87403261,2581.3,2581.0,43.521]
[1748020941151,0.85181794,2581.4,2581.0,43.521]
[1748020941352,3.87392961,2581.4,2581.1,0.5482]
[1748020941541,3.87404111,2581.3,2581.1,0.5482]
[1748020941946,3.87394769,2581.4,2581.1,0.5482]
[1748020942145,3.87411075,2581.3,2581.1,0.5482]
[1748020942648,3.87416705,2581.2,2581.1,0.5482]
[1748020942980,3.87411075,2581.3,2581.1,0.5482]
[1748020943282,3.87424866,2581.2,2581.0,24.727]
[1748020943446,3.87424866,2581.2,2581.1,15.18]
[1748020943777,3.87431715,2581.1,2581.0,16.727]
[1748020943976,3.87431715,2581.1,2581.0,31.907]
[1748020944177,4.80702355,2581.1,2581.0,31.907]
[1748020944383,0.9327064,2581.1,2581.0,31.907]
[1748020944675,3.87431715,2581.1,2581.0,31.906]
[1748020944978,4.70041669,2581.9,2581.0,31.906]
[1748020945277,3.87431715,2581.1,2581.0,16.727]
[1748020945448,3.87431715,2581.1,2581.0,43.517]
[1748020945880,4.64916799,2581.1,2581.0,16.727]
[1748020946049,4.64916799,2581.1,2581.0,31.906]
[1748020947080,0.77485084,2581.1,2581.0,31.906]
[1748020947284,3.87424448,2581.2,2581.0,31.906]
[1748020948136,0.8273,2581.4,2581.0,31.906]
[1748020948280,0.7849,2582.1,2581.1,0.5482]
[1748020948476,3.87431715,2581.1,2581.0,16.727]
[1748020948691,3.87431715,2581.1,2581.0,43.565]
[1748020948913,3.87431715,2581.1,2581.0,16.727]
[1748020949116,4.72765758,2581.1,2581.0,16.727]
[1748020949299,4.72765758,2581.1,2581.0,31.954]
[1748020949504,3.87431715,2581.1,2581.0,31.954]
[1748020949811,3.87431715,2581.1,2581.0,32.31868009]
[1748020950020,3.87431715,2581.1,2581.0,32.5323583]
[1748020950514,3.87380606,2581.5,2581.1,0.5482]
[1748020950830,0.7849,2582.0,2581.2,0.25241479]
[1748020951121,0.7849,2582.0,2581.3,0.21367821]
[1748020951122,4.65788611,2582.0,2581.3,0.21367821]
[1748020951277,3.87386689,2581.4,2581.3,0.21367821]
[1748020951610,0.7849,2582.0,2581.3,0.21367821]
[1748020951611,3.87373677,2581.5,2581.3,0.21367821]
[1748020951810,3.87358925,2581.6,2581.4,0.21367821]
[1748020952017,3.87334007,2581.8,2581.5,26.838]
[1748020952205,3.87342361,2581.7,2581.6,0.5482]
[1748020952575,0.7853,2582.2,2581.6,0.76187821]
[1748020952781,11.611,2582.8,2581.6,0.21367821]
[1748020952782,3.87341674,2581.7,2581.6,0.21367821]
[1748020952981,5.43338753,2581.7,2581.6,15.44067821]
[1748020953288,3.87341674,2581.7,2581.6,15.227]
[1748020954207,3.87319911,2581.9,2581.6,15.227]
[1748020954517,3.87341674,2581.7,2581.6,15.59106258]
[1748020954980,3.87318711,2581.9,2581.7,8.0]
[1748020955181,3.87326671,2581.8,2581.7,8.0]
[1748020955383,3.87341674,2581.7,2581.6,15.59106258]
[1748020955805,4.70291674,2581.7,2581.6,15.59106258]
[1748020956110,3.87341674,2581.7,2581.6,15.59106258]
[1748020956509,3.87341674,2581.7,2581.6,15.227]
[1748020956709,3.87341674,2581.7,2581.6,15.44033216]
[1748020958220,4.64808509,2581.7,2581.6,15.43733216]
[1748020958419,4.64808509,2581.7,2581.6,15.224]
[1748020959494,3.87341674,2581.7,2581.6,15.224]
[1748020959817,3.87341674,2581.7,2581.6,15.43741514]
[1748020961080,3.87341674,2581.7,2581.6,23.43741514]
[1748020961736,3.87341674,2581.7,2581.6,27.04641514]
[1748020962422,3.87341674,2581.7,2581.6,27.04541514]
[1748020963730,3.87341674,2581.7,2581.6,0.21341514]
[1748020964043,3.87341674,2581.7,2581.6,27.04441514]
[1748020965301,3.87298238,2582.0,2581.6,27.04441514]
[1748020965302,0.784,2582.5,2581.7,8.5482]
[1748020965502,0.8095,2583.2,2581.8,0.5482]
[1748020965706,0.8095,2583.2,2581.9,0.5482]
[1748020965907,3.87244379,2582.4,2582.1,8.0]
[1748020966106,3.87244379,2582.4,2582.3,0.5482]
[1748020966107,3.87244215,2582.4,2582.3,0.5482]
[1748020966341,3.87244215,2582.4,2582.3,12.1562]
[1748020966548,3.87244215,2582.4,2582.3,11.82141514]
[1748020967454,3.87244215,2582.4,2582.3,11.608]
[1748020967610,3.87266671,2582.2,2582.1,8.5482]
[1748020967812,3.87266671,2582.2,2582.1,35.59246879]
[1748020968212,3.87254123,2582.3,2582.1,35.59246879]
[1748020968213,3.87259401,2582.3,2582.1,35.59246879]
[1748020968415,3.87266671,2582.2,2582.1,35.3792]
[1748020969207,3.87266671,2582.2,2582.1,35.59240458]
[1748020969413,0.8095,2583.1,2582.1,35.04420458]
[1748020969647,3.87174695,2582.9,2582.2,0.58691365]
[1748020969824,3.87215871,2582.6,2582.2,8.5482]
[1748020970026,3.87214982,2582.6,2582.3,0.21320458]
[1748020970223,3.87196942,2582.7,2582.3,0.21320458]
[1748020970427,3.87187305,2582.8,2582.4,0.5482]
[1748020970629,3.8720505,2582.7,2582.4,0.5482]
[1748020970830,3.87180159,2582.8,2582.4,1.81159917]
[1748020971062,3.87180159,2582.8,2582.6,8.0]
[1748020971231,3.87205061,2582.7,2582.6,8.0]
[1748020971416,3.87180851,2582.8,2582.6,8.0]
[1748020971655,3.87180851,2582.8,2582.6,9.71526739]
[1748020971855,4.53780698,2583.3,2582.6,9.71526739]
[1748020971856,3.87146028,2583.1,2582.8,0.5482]
[1748020972130,3.87147041,2583.0,2582.8,0.5482]
[1748020972331,3.87116754,2583.2,2582.8,0.5482]
[1748020972528,0.66666667,2583.3,2582.8,0.5482]
[1748020972763,3.87156306,2583.0,2582.6,1.71526739]
[1748020972929,3.87156306,2583.0,2582.5,30.69920508]
[1748020972930,3.87162645,2582.9,2582.7,1.26339917]
[1748020973129,3.87154161,2583.0,2582.7,1.26339917]
[1748020973328,3.87154161,2583.0,2582.8,26.825]
[1748020973654,3.87155027,2583.0,2582.8,26.825]
[1748020974332,3.87161717,2582.9,2582.8,26.825]
[1748020974719,3.87152341,2583.0,2582.8,26.825]
[1748020975861,0.66666667,2583.3,2582.4,3.87230667]
[1748020976186,0.66666667,2583.3,2582.3,3.87249422]
[1748020976187,3.87160766,2583.0,2582.9,11.604]
[1748020976340,3.87127194,2583.2,2582.9,43.532]
[1748020976675,4.53771662,2583.3,2582.9,43.532]
[1748020976963,3.87124314,2583.2,2583.0,2.20418647]
[1748020977162,4.53775785,2583.3,2583.1,15.217]
[1748020977468,0.66666667,2583.3,2583.2,8.0]
[1748020978462,0.66666667,2583.3,2583.2,0.21219265]
[1748020978668,4.53768436,2583.3,2583.2,35.13419265]
[1748020979133,0.66666667,2583.3,2583.2,34.922]
[1748020979972,4.53768436,2583.3,2583.2,34.922]
[1748020980116,4.53768436,2583.3,2583.2,8.0]
[1748020980453,5.37854182,2583.3,2583.2,26.921]
[1748020980640,4.53768436,2583.3,2583.2,26.921]
[1748020981155,3.87175512,2582.9,2582.3,4.33061959]
[1748020981359,3.87116754,2583.2,2582.3,0.45819952]
[1748020981660,0.66666667,2583.3,2582.3,0.45819952]
[1748020981661,3.87207112,2582.6,2582.4,26.92]
[1748020981964,3.87207112,2582.6,2582.0,3.87295255]
[1748020981965,3.87218344,2582.6,2582.5,26.92]
[1748020982265,3.87218344,2582.6,2582.5,34.92]
[1748020982449,3.87218344,2582.6,2582.5,26.92]
[1748020983749,4.64659573,2582.6,2582.5,15.318]
[1748020984123,4.64648548,2582.6,2581.9,0.19353444]
[1748020984365,3.87281669,2582.1,2582.0,26.92]
[1748020984864,3.87281669,2582.1,2582.0,27.13281141]
[1748020985066,3.87281669,2582.1,2582.0,35.13281141]
[1748020985666,3.87281669,2582.1,2582.0,15.53081141]
[1748020985871,3.87281669,2582.1,2582.0,15.318]
[1748020986058,5.44546764,2582.1,2582.0,15.318]
[1748020986278,5.44546764,2582.1,2582.0,32.026]
[1748020986638,4.67091669,2582.1,2582.0,32.026]
[1748020987283,3.87281669,2582.1,2582.0,32.026]
[1748020988335,3.87281669,2582.1,2582.0,32.027]
[1748020989033,3.87281669,2582.1,2582.0,16.708]
[1748020989270,3.87281669,2582.1,2582.0,32.028]
[1748020989574,5.47506764,2582.1,2582.0,32.028]
[1748020990777,15.66506764,2582.1,2582.0,32.028]
[1748020991161,4.63881696,2581.3,2581.2,11.604]
[1748020991347,4.63881696,2581.3,2581.2,15.32]
[1748020991679,3.87457218,2581.0,2580.6,8.0]
[1748020991879,3.87457218,2581.0,2580.8,8.0]
[1748020992036,3.87457218,2581.0,2580.9,11.604]
[1748020992241,3.87457218,2581.0,2580.9,19.604]
[1748020993253,3.87457218,2581.0,2580.9,8.0]
[1748020993495,3.87457218,2581.0,2580.9,26.927]
[1748020994774,0.7648,2581.3,2580.7,0.19045052]
[1748020995093,3.87416993,2581.2,2580.8,26.927]
[1748020995387,3.87423888,2581.2,2580.9,26.929]
[1748020995585,3.87433591,2581.1,2580.9,26.929]
[1748020995761,3.87446726,2581.0,2580.9,26.929]
[1748020996283,3.87446726,2581.0,2580.9,43.643]
[1748020996489,3.87446726,2581.0,2580.9,43.645]
[1748020997919,3.87436524,2581.1,2580.9,43.645]
[1748020998212,3.87446726,2581.0,2580.9,43.645]
[1748020998517,4.69386726,2581.0,2580.9,16.714]
[1748020998713,3.87253338,2582.3,2581.0,11.87436609]
[1748020998913,3.87238066,2582.4,2582.2,4.20975746]
[1748020999115,3.87158794,2583.0,2582.3,43.648]
[1748020999329,3.87229513,2582.5,2582.3,43.648]
[1748020999621,3.87236679,2582.4,2582.3,43.648]
[1748020999788,0.8194,2583.2,2582.4,8.0]
[1748021000108,3.87187837,2582.8,2582.5,15.325]
[1748021000278,3.87193907,2582.7,2582.5,15.325]
[1748021000793,3.87171165,2582.9,2582.5,15.325]
[1748021001016,3.87179423,2582.8,2582.5,15.325]
[1748021001833,4.69057902,2583.2,2582.5,23.40685626]
[1748021001989,4.69058777,2583.2,2582.5,23.40685626]
[1748021002188,3.87148686,2583.0,2582.5,23.40685626]
[1748021002511,3.87137262,2583.1,2582.5,23.40691432]
[1748021003505,2.60962229,2583.3,2582.5,19.53475746]
[1748021003711,3.87163617,2582.9,2582.5,19.53475746]
[1748021004022,3.87139551,2583.1,2582.5,23.40692473]
[1748021004320,3.87124154,2583.2,2582.8,4.20975746]
[1748021004523,6.48076792,2583.3,2582.8,4.20975746]
[1748021004722,2.60962229,2583.3,2582.8,4.20975746]
[1748021005141,6.48070718,2583.3,2582.8,4.20975746]
[1748021005424,3.87117699,2583.2,2582.8,4.20975746]
[1748021005629,6.48072121,2583.3,2582.8,8.08151025]
[1748021005932,6.48072121,2583.3,2583.1,4.20975746]
[1748021005933,2.60962229,2583.3,2583.1,4.20975746]
[1748021006225,2.60962229,2583.3,2583.2,15.322]
[1748021007801,0.66666667,2583.3,2583.2,15.322]
[1748021008006,0.66666667,2583.3,2583.2,23.322]
[1748021008599,0.66666667,2583.3,2583.2,27.19316754]
[1748021009027,0.66666667,2583.3,2583.2,23.322]
[1748021009338,4.53768436,2583.3,2583.2,15.84710578]
[1748021009703,0.66666667,2583.3,2583.2,15.84710578]
[1748021010106,0.66666667,2583.3,2583.2,23.635]
[1748021010411,4.53768436,2583.3,2583.2,23.635]
[1748021011012,4.53768436,2583.3,2583.2,8.0]
[1748021011212,0.66666667,2583.3,2583.2,23.633]
[1748021011965,4.53768436,2583.3,2583.2,23.633]
[1748021012532,1.5075225,2583.3,2583.2,15.633]
[1748021012746,4.53772253,2583.3,2583.2,15.633]
[1748021013942,0.66666667,2583.3,2583.2,15.633]
[1748021014146,4.53768436,2583.3,2583.2,15.633]
[1748021015862,4.53768436,2583.3,2581.9,0.19420129]
[1748021015863,3.87236679,2582.4,2581.9,0.19420129]
[1748021016065,4.64682801,2582.4,2582.3,32.347]
[1748021016354,3.87236679,2582.4,2582.3,32.347]
[1748021016564,3.87272843,2582.2,2581.7,3.87335837]
[1748021016718,3.87255251,2582.3,2582.2,4.20975746]
[1748021016908,3.87244179,2582.4,2582.2,4.20975746]
[1748021017125,3.87244179,2582.4,2582.3,15.632]
[1748021021817,3.8713174,2583.1,2582.3,23.632]
[1748021022016,3.87236679,2582.4,2582.3,8.0]
[1748021022216,3.87236679,2582.4,2582.3,35.236]
[1748021022914,3.87236679,2582.4,2582.3,35.237]
[1748021023112,3.87228422,2582.5,2582.3,35.237]
[1748021023354,3.87236679,2582.4,2582.3,35.237]
[1748021023570,3.87236679,2582.4,2582.3,8.0]
[1748021023719,3.87236679,2582.4,2582.3,35.237]
[1748021024057,4.64683189,2582.4,2582.3,15.634]
[1748021024747,3.87296669,2582.0,2581.9,4.20975746]
[1748021024929,3.87296669,2582.0,2581.9,31.44675746]
[1748021025730,3.87296669,2582.0,2581.9,15.635]
[1748021026317,3.87296669,2582.0,2581.9,16.71]
[1748021026523,3.87296669,2582.0,2581.9,43.949]
[1748021026945,3.87266683,2582.2,2581.9,43.949]
[1748021027145,3.87266683,2582.2,2582.1,4.20975746]
[1748021027840,3.87296669,2582.0,2581.9,51.949]
[1748021028527,3.87296669,2582.0,2581.9,52.16236739]
[1748021028721,3.87257117,2582.3,2581.9,52.16236739]
[1748021028927,3.87282803,2582.1,2581.9,52.16236739]
[1748021029265,3.87289217,2582.1,2581.9,52.16236739]
[1748021029427,3.87289217,2582.1,2582.0,0.21336739]
[1748021031256,3.8724384,2582.4,2582.0,0.21336739]
[1748021031469,3.87196341,2582.7,2582.3,4.20975746]
[1748021031649,3.87196341,2582.7,2582.6,4.20975746]
[1748021032443,3.87179832,2582.8,2582.6,12.20975746]
[1748021032840,3.87170231,2582.9,2582.6,12.20975746]
[1748021033267,3.87191698,2582.7,2582.6,12.20975746]
[1748021034185,3.87191698,2582.7,2582.6,39.66287111]
[1748021034358,3.8718413,2582.8,2582.6,39.66287111]
[1748021034558,3.8718413,2582.8,2582.6,39.44975746]
[1748021034886,3.87191698,2582.7,2582.6,39.44975746]
[1748021035847,3.87191698,2582.7,2582.6,39.66289368]
[1748021036085,3.8715084,2583.0,2582.6,28.05789368]
[1748021036388,3.87162752,2582.9,2582.7,19.604]
[1748021036587,3.87155433,2583.0,2582.7,19.604]
[1748021036885,3.87152144,2583.0,2582.7,19.604]
[1748021037081,3.87152144,2583.0,2582.8,27.239]